bitfinex/quotes_SOLUSD_20220218
["timestamp","ask_amount","ask_price","bid_price","bid_amount"]
[1645176640431,1.47615194,96.041,95.995,24.2196]
[1645176640627,1.47615194,96.042,95.995,24.2196]
[1645176640833,1.47615194,96.049,95.996,106.9293831]
[1645176641031,1.47615194,96.051,95.996,106.9293831]
[1645176641227,1.47615194,96.051,95.997,2.6293831]
[1645176641530,1.47615194,96.05,95.997,2.6293831]
[1645176641728,1.47615194,96.06,96.001,104.3]
[1645176642032,1.47615194,96.068,96.002,5.205]
[1645176642254,1.47615194,96.073,96.003,104.3]
[1645176642454,1.47615194,96.069,96.003,106.9293831]
[1645176642747,48.83945385,96.068,96.005,104.3]
[1645176643150,50.31560579,96.068,96.006,2.6293831]
[1645176643446,50.31560579,96.068,96.011,104.3]
[1645176643847,1.47615194,96.067,96.011,104.3]
[1645176644047,50.31560579,96.068,96.012,5.206]
[1645176644247,1.47615194,96.066,96.013,23.8153]
[1645176644446,1.47615194,96.065,96.013,23.8153]
[1645176644647,1.47615194,96.064,96.013,23.8153]
[1645176645050,1.47615194,96.065,96.013,23.8153]
[1645176645248,1.47615194,96.065,96.013,29.0213]
[1645176645648,48.83945385,96.068,96.013,29.0213]
[1645176645649,1.47615194,96.064,96.013,29.0213]
[1645176646050,1.47615194,96.067,96.013,29.0213]
[1645176646251,1.47615194,96.067,96.013,23.8153]
[1645176646451,1.47615194,96.065,96.013,23.8153]
[1645176647151,1.47615194,96.064,96.013,23.8153]
[1645176647353,1.47615194,96.065,96.013,23.8153]
[1645176650059,1.47615194,96.064,96.013,23.8153]
[1645176650459,1.47615194,96.061,96.013,23.8153]
[1645176651058,1.47615194,96.06,96.013,23.8153]
[1645176652661,1.47615194,96.059,96.013,23.8153]
[1645176653766,1.47615194,96.058,96.013,23.8153]
[1645176654863,1.47615194,96.056,96.013,23.8153]
[1645176655664,1.47615194,96.055,96.013,23.8153]
[1645176655865,1.47615194,96.055,96.014,5.206]
[1645176656066,1.47615194,96.054,96.014,5.206]
[1645176656668,1.47615194,96.054,96.014,20.8582]
[1645176658471,1.47615194,96.051,96.014,15.6522]
[1645176658671,1.47615194,96.048,96.014,15.6522]
[1645176659370,28.50727195,96.067,96.014,15.6522]
[1645176659371,1.47615194,96.049,96.014,15.6522]
[1645176659571,1.47615194,96.048,96.014,15.6522]
[1645176659774,1.47615194,96.048,96.013,23.8153]
[1645176659973,1.47615194,96.05,96.013,23.8153]
[1645176660174,1.47615194,96.048,96.013,23.8153]
[1645176660774,1.47615194,96.047,96.013,23.8153]
[1645176661575,1.47615194,96.044,96.013,23.8153]
[1645176661975,1.47615194,96.045,96.01,14.98]
[1645176662175,1.47615194,96.044,96.01,14.98]
[1645176662574,1.47615194,96.043,96.01,14.98]
[1645176662776,1.47615194,96.045,96.011,22.6976]
[1645176663374,1.47615194,96.048,96.011,22.6976]
[1645176664976,1.47615194,96.045,96.011,22.6976]
[1645176665575,1.47615194,96.044,96.011,22.6976]
[1645176665777,1.47615194,96.042,96.011,22.6976]
[1645176665976,1.47615194,96.044,96.011,22.6976]
[1645176666176,1.47615194,96.043,96.011,22.6976]
[1645176666580,1.47615194,96.047,96.011,22.6976]
[1645176666978,5.92287808,96.066,96.011,22.6976]
[1645176666979,1.47615194,96.046,96.011,22.6976]
[1645176667178,1.47615194,96.043,96.011,22.6976]
[1645176667478,1.47615194,96.044,96.011,22.6976]
[1645176667881,1.47615194,96.041,96.011,22.6976]
[1645176668278,42.67192319,96.039,96.011,22.6976]
[1645176669781,1.47615194,96.037,96.011,22.6976]
[1645176670683,1.47615194,96.038,96.011,22.6976]
[1645176670882,44.14807513,96.039,96.011,22.6976]
[1645176671883,1.47615194,96.037,96.011,22.6976]
[1645176674987,44.14807513,96.039,96.011,22.6976]
[1645176675187,42.67192319,96.039,96.011,22.6976]
[1645176675387,44.14807513,96.039,96.011,22.6976]
[1645176676691,42.67192319,96.039,96.011,22.6976]
[1645176679400,1.47615194,96.041,96.011,22.6976]
[1645176679999,1.47615194,96.04,96.011,22.6976]
[1645176680299,1.47615194,96.041,96.012,5.206]
[1645176680698,1.47615194,96.041,96.011,22.6976]
[1645176682308,1.47615194,96.042,96.011,22.6976]
[1645176682505,50.12270584,96.043,96.011,22.6976]
[1645176682705,1.47615194,96.042,96.011,22.6976]
[1645176683305,1.47615194,96.035,96.011,22.6976]
[1645176683737,1.47615194,96.034,96.011,22.6976]
[1645176683938,1.47615194,96.033,96.011,22.6976]
[1645176684342,1.47615194,96.031,96.011,22.6976]
[1645176684536,1.47615194,96.033,96.011,22.6976]
[1645176684736,1.47615194,96.032,96.011,22.6976]
[1645176685537,1.47615194,96.033,96.011,22.6976]
[1645176685934,48.6465539,96.043,95.981,5.206]
[1645176685935,1.47615194,96.032,95.981,5.206]
[1645176686138,1.47615194,96.03,95.981,5.206]
[1645176686335,48.6465539,96.043,95.98,14.98]
[1645176686336,1.47615194,96.023,95.982,29.61035673]
[1645176686534,6.02,96.032,95.982,29.61035673]
[1645176686535,1.47615194,96.021,95.982,29.61035673]
[1645176686735,1.47615194,96.018,95.956,2.6293831]
[1645176686937,1.47615194,96.016,95.963,22.5856]
[1645176687136,1.47615194,96.016,95.963,52.19956712]
[1645176687339,1.47615194,96.019,95.964,5.208]
[1645176687536,1.47615194,96.02,95.964,34.82196712]
[1645176687735,1.47615194,96.017,95.964,29.61396712]
[1645176687934,6.36615194,96.017,95.965,69.87659325]
[1645176688137,1.47615194,96.016,95.965,69.87659325]
[1645176688339,1.47615194,96.016,95.966,29.61396712]
[1645176688538,1.47615194,96.017,95.966,29.61396712]
[1645176688835,1.47615194,96.018,95.966,29.61396712]
[1645176689235,1.47615194,96.018,95.967,104.3]
[1645176689437,1.47615194,96.03,95.968,5.208]
[1645176689638,1.47615194,96.03,95.968,34.82196712]
[1645176689837,1.47615194,96.03,95.968,37.45135022]
[1645176690036,48.6465539,96.043,95.969,29.61396712]
[1645176690037,1.47615194,96.029,95.969,29.61396712]
[1645176690235,1.47615194,96.028,95.969,29.61396712]
[1645176690436,1.47615194,96.026,95.969,29.61396712]
[1645176690839,1.47615194,96.025,95.97,2.6293831]
[1645176691038,1.47615194,96.029,95.97,112.1373831]
[1645176691237,1.47615194,96.029,95.972,104.3]
[1645176691438,1.47615194,96.029,95.973,5.208]
[1645176691638,1.47615194,96.029,95.973,37.45135022]
[1645176691842,1.47615194,96.029,95.973,32.24335022]
[1645176692038,1.47615194,96.029,95.974,60.41415022]
[1645176692240,1.47615194,96.029,95.974,55.20615022]
[1645176692440,1.47615194,96.029,95.975,37.45135022]
[1645176692837,1.47615194,96.029,95.976,29.61396712]
[1645176694943,1.47615194,96.028,95.975,7.8373831]
[1645176698144,1.47615194,96.027,95.975,7.8373831]
[1645176698346,1.47615194,96.027,95.975,2.6293831]
[1645176698843,1.47615194,96.026,95.975,2.6293831]
[1645176699045,1.47615194,96.027,95.975,2.6293831]
[1645176699746,1.47615194,96.028,95.975,2.6293831]
[1645176699945,1.47615194,96.028,95.975,7.8363831]
[1645176700549,1.47615194,96.027,95.975,7.8363831]
[1645176700745,1.47615194,96.027,95.975,2.6293831]
[1645176700946,1.47615194,96.026,95.975,2.6293831]
[1645176704247,1.47615194,96.028,95.975,106.9293831]
[1645176704447,1.47615194,96.028,95.976,5.207]
[1645176704648,1.47615194,96.039,95.981,104.3]
[1645176704850,1.47615194,96.04,95.982,5.207]
[1645176705048,1.47615194,96.04,95.983,104.3]
[1645176705251,38.9215875,96.039,95.983,104.3]
[1645176705548,38.9215875,96.039,95.985,104.3]
[1645176705749,1.47615194,96.04,95.985,104.3]
[1645176705948,1.47615194,96.04,95.987,104.3]
[1645176706153,1.47615194,96.044,95.991,104.3]
[1645176706351,1.47615194,96.047,95.993,104.3]
[1645176706551,1.47615194,96.048,95.993,104.3]
[1645176706751,39.4025832,96.047,95.995,104.3]
[1645176706952,39.4025832,96.047,95.996,5.207]
[1645176707151,39.4025832,96.047,95.997,104.3]
[1645176707353,39.4025832,96.047,95.997,133.90821162]
[1645176707552,39.4025832,96.047,95.998,5.207]
[1645176707753,39.4025832,96.047,95.999,104.3]
[1645176708151,39.4025832,96.047,95.999,106.9293831]
[1645176708352,39.4025832,96.047,96.001,104.3]
[1645176708752,39.4025832,96.047,96.002,2.6293831]
[1645176708951,39.4025832,96.047,96.003,104.3]
[1645176709453,39.4025832,96.047,96.005,104.3]
[1645176709854,39.4025832,96.047,96.006,2.6293831]
[1645176710055,40.87873514,96.047,96.006,2.6293831]
[1645176710456,39.4025832,96.047,96.006,2.6293831]
[1645176710856,39.4025832,96.047,96.005,5.206]
[1645176710857,1.47615194,96.041,96.005,5.206]
[1645176711056,1.47615194,96.041,96.004,23.6793]
[1645176711256,1.47615194,96.039,96.004,23.6793]
[1645176711457,1.47615194,96.033,96.004,23.6793]
[1645176711857,1.47615194,96.031,96.004,23.6793]
[1645176712058,1.47615194,96.029,96.004,23.6793]
[1645176712262,1.47615194,96.028,96.004,23.6793]
[1645176712463,1.47615194,96.028,95.997,15.8236]
[1645176712771,1.47615194,96.025,95.992,24.4044]
[1645176712963,1.47615194,96.023,95.992,24.4044]
[1645176713163,1.47615194,96.022,95.992,24.4044]
[1645176713764,5.92261534,96.046,95.992,24.4044]
[1645176713765,1.47615194,96.023,95.992,24.4044]
[1645176715666,1.47615194,96.023,95.964,109.507]
[1645176715864,1.47615194,96.019,95.964,104.3]
[1645176716264,46.53264445,96.018,95.966,104.3]
[1645176716466,46.53264445,96.018,95.965,75.37783966]
[1645176716666,46.53264445,96.018,95.967,29.61460552]
[1645176717185,46.53264445,96.018,95.966,29.61460552]
[1645176717786,46.53264445,96.018,95.967,104.3]
[1645176718084,46.53264445,96.018,95.968,5.208]
[1645176718283,46.53264445,96.018,95.968,34.82260552]
[1645176718684,46.53264445,96.018,95.968,5.208]
[1645176718883,48.00879639,96.018,95.965,45.76323414]
[1645176719486,1.47615194,96.016,95.964,5.208]
[1645176720283,46.53264445,96.018,95.964,5.208]
[1645176720284,1.47615194,96.015,95.964,5.208]
[1645176720487,1.47615194,96.015,95.963,29.4094]
[1645176720689,1.47615194,96.015,95.964,104.3]
[1645176720887,1.47615194,96.015,95.963,29.4094]
[1645176721484,1.47615194,96.014,95.963,29.4094]
[1645176722687,1.47615194,96.015,95.963,29.4094]
[1645176722889,1.47615194,96.015,95.963,24.2014]
[1645176724593,1.47615194,96.016,95.963,24.2014]
[1645176724992,1.47615194,96.013,95.963,24.2014]
[1645176725191,46.53264445,96.018,95.963,24.2014]
[1645176725192,1.47615194,96.012,95.963,24.2014]
[1645176725392,1.47615194,96.009,95.963,24.2014]
[1645176725593,1.47615194,96.01,95.963,24.2014]
[1645176725796,1.47615194,96.009,95.963,24.2014]
[1645176726592,1.47615194,96.01,95.963,24.2014]
[1645176727593,1.47615194,96.011,95.963,24.2014]
[1645176727995,1.47615194,96.012,95.963,24.2014]
[1645176728195,1.47615194,96.013,95.963,24.2014]
[1645176729496,1.47615194,96.014,95.963,24.2014]
[1645176730599,1.47615194,96.015,95.963,24.2014]
[1645176731403,1.47615194,96.014,95.963,24.2014]
[1645176732000,1.47615194,96.015,95.963,24.2014]
[1645176733600,1.47615194,96.016,95.963,24.2014]
[1645176734903,46.53264445,96.018,95.964,104.3]
[1645176735105,1.47615194,96.02,95.964,109.508]
[1645176735304,1.47615194,96.026,95.964,109.508]
[1645176735603,15.6313,96.04,95.964,109.508]
[1645176735604,1.47615194,96.031,95.964,109.508]
[1645176736007,1.47615194,96.029,95.964,109.508]
[1645176736405,54.16778121,96.03,95.964,112.1373831]
[1645176736606,54.16778121,96.03,95.965,29.61600554]
[1645176736804,54.16778121,96.03,95.97,14.98]
[1645176737005,54.16778121,96.03,95.971,5.208]
[1645176737407,54.16778121,96.03,95.971,109.508]
[1645176737806,55.64393315,96.03,95.971,109.508]
[1645176738008,54.16778121,96.03,95.971,109.508]
[1645176738207,55.64393315,96.03,95.971,109.508]
[1645176738705,1.47615194,96.029,95.971,109.508]
[1645176739410,1.47615194,96.027,95.971,109.508]
[1645176740210,1.47615194,96.026,95.971,109.508]
[1645176740413,1.47615194,96.025,95.971,109.508]
[1645176740613,1.47615194,96.023,95.971,5.208]
[1645176740809,1.47615194,96.023,95.964,5.208]
[1645176741011,1.47615194,96.022,95.964,5.208]
[1645176741211,1.47615194,96.022,95.966,104.3]
[1645176741410,1.47615194,96.022,95.967,5.208]
[1645176741611,1.47615194,96.022,95.966,5.208]
[1645176741810,1.47615194,96.021,95.964,5.208]
[1645176742411,1.47615194,96.021,95.965,29.6166167]
[1645176742613,1.47615194,96.021,95.966,5.208]
[1645176743212,1.47615194,96.021,95.967,29.6166167]
[1645176743435,1.47615194,96.021,95.968,5.208]
[1645176743615,1.47615194,96.021,95.967,29.6166167]
[1645176743812,1.47615194,96.011,95.967,29.6166167]
[1645176744013,1.47615194,96.011,95.949,15.3985]
[1645176744214,1.47615194,96.01,95.949,15.3985]
[1645176744419,1.47615194,96.0,95.944,15.6173]
[1645176744617,1.47615194,95.999,95.94,24.7681]
[1645176744816,1.47615194,95.998,95.942,15.8857]
[1645176745416,40.73544219,95.997,95.944,50.29696822]
[1645176746024,40.73544219,95.997,95.935,5.208]
[1645176746225,1.47615194,95.991,95.918,28.5706]
[1645176746420,1.47615194,95.989,95.918,23.3626]
[1645176746619,15.6406,95.98,95.919,5.21]
[1645176747019,15.6406,95.98,95.935,41.6955075]
[1645176750222,15.6406,95.98,95.918,23.3626]
[1645176751144,15.6406,95.98,95.927,39.08977325]
[1645176754943,15.6406,95.98,95.928,5.21]
[1645176755744,1.47615194,95.995,95.928,5.21]
[1645176755944,1.47615194,95.996,95.929,23.2721]
[1645176756146,1.47615194,95.996,95.93,5.21]
[1645176756747,42.21159413,95.997,95.93,5.21]
[1645176757346,15.6382,95.99,95.93,5.21]
[1645176757544,15.6382,95.99,95.929,23.2721]
[1645176758146,15.6382,95.99,95.93,104.3]
[1645176758347,42.21159413,95.997,95.931,5.21]
[1645176758348,40.73544219,95.997,95.931,5.21]
[1645176758556,40.73544219,95.997,95.931,119.11]
[1645176758751,40.73544219,95.997,95.932,29.62476047]
[1645176758951,40.73544219,95.997,95.933,5.21]
[1645176759355,40.73544219,95.997,95.933,7.8393831]
[1645176759553,40.73544219,95.997,95.934,29.62476047]
[1645176759750,40.73544219,95.997,95.935,5.21]
[1645176760453,15.6383,95.99,95.931,113.9]
[1645176765759,17.11445194,95.99,95.931,113.9]
[1645176765960,1.47615194,95.984,95.931,113.9]
[1645176766459,15.6426,95.97,95.931,113.9]
[1645176772065,15.6426,95.97,95.931,157.435847]
[1645176772664,15.6426,95.97,95.931,113.9]
[1645176773264,1.47615194,95.977,95.931,113.9]
[1645176773464,1.47615194,95.977,95.932,5.21]
[1645176773665,1.47615194,95.983,95.933,52.23390549]
[1645176773867,1.47615194,95.984,95.934,5.21]
[1645176774667,1.47615194,95.984,95.935,22.9456]
[1645176774867,1.47615194,95.983,95.935,22.9456]
[1645176776173,1.47615194,95.982,95.935,22.9456]
[1645176779005,15.6401,95.98,95.935,22.9456]
[1645176779204,1.47615194,95.979,95.935,22.9456]
[1645176779607,1.47615194,95.977,95.935,22.9456]
[1645176779809,1.47615194,95.977,95.931,113.9]
[1645176780007,1.47615194,95.976,95.931,113.9]
[1645176780212,1.47615194,95.973,95.931,113.9]
[1645176780409,1.47615194,95.972,95.931,113.9]
[1645176780707,1.47615194,95.973,95.931,113.9]
[1645176780907,1.47615194,95.972,95.931,113.9]
[1645176781114,1.47615194,95.973,95.931,113.9]
[1645176781310,5.92598204,95.996,95.931,113.9]
[1645176781311,15.6416,95.97,95.931,113.9]
[1645176783212,1.47615194,95.976,95.931,113.9]
[1645176783411,1.47615194,95.98,95.932,23.5277]
[1645176783612,1.47615194,95.98,95.932,28.7377]
[1645176783813,1.47615194,95.982,95.932,28.7377]
[1645176784515,15.6399,95.98,95.932,28.7377]
[1645176786217,1.47615194,95.978,95.932,28.7377]
[1645176787415,15.6418,95.97,95.932,5.21]
[1645176787619,15.6418,95.97,95.931,113.9]
[1645176788817,17.11795194,95.97,95.931,113.9]
[1645176789420,1.47615194,95.969,95.905,5.211]
[1645176789620,15.645,95.95,95.904,24.4048]
[1645176790223,42.14081975,95.949,95.904,24.4048]
[1645176796449,15.645,95.95,95.904,24.4048]
[1645176796650,1.47615194,95.967,95.905,34.84801126]
[1645176796848,15.6427,95.97,95.905,34.84801126]
[1645176797049,15.6427,95.97,95.905,5.212]
[1645176797449,41.16951089,95.969,95.905,5.212]
[1645176797853,1.47615194,95.967,95.905,5.212]
[1645176798251,1.47615194,95.966,95.905,5.212]
[1645176798451,15.6433,95.96,95.905,5.212]
[1645176799652,15.6433,95.96,95.904,24.4048]
[1645176801956,15.6433,95.96,95.905,5.212]
[1645176802156,15.6433,95.96,95.905,34.85007946]
[1645176802556,15.6433,95.96,95.906,32.26746256]
[1645176802755,15.6433,95.96,95.907,5.211]
[1645176802958,41.16951089,95.969,95.907,37.47846256]
[1645176803259,41.16951089,95.969,95.908,29.63807946]
[1645176803454,41.16951089,95.969,95.908,34.84907946]
[1645176803857,1.47615194,95.967,95.908,29.63807946]
[1645176804057,1.47615194,95.967,95.904,24.4048]
[1645176804460,15.6432,95.96,95.905,29.63816177]
[1645176806065,15.6432,95.96,95.905,34.84916177]
[1645176806560,15.6432,95.96,95.906,29.63816177]
[1645176806761,15.6432,95.96,95.907,5.211]
[1645176807361,15.6432,95.96,95.908,29.63816177]
[1645176807964,15.6432,95.96,95.909,5.211]
[1645176808365,15.6432,95.96,95.905,34.84916177]
[1645176808565,15.6432,95.96,95.91,29.63816177]
[1645176808965,15.6432,95.96,95.906,29.63816177]
[1645176809263,15.6432,95.96,95.907,5.211]
[1645176809864,15.6432,95.96,95.908,29.63816177]
[1645176810366,15.6432,95.96,95.909,5.211]
[1645176810863,15.6432,95.96,95.906,29.63816177]
[1645176811065,15.6432,95.96,95.91,29.63816177]
[1645176811465,15.6432,95.96,95.908,29.63816177]
[1645176812066,15.6432,95.96,95.905,5.211]
[1645176812067,15.6432,95.96,95.907,29.63816177]
[1645176812367,15.6432,95.96,95.908,5.211]
[1645176812567,15.6432,95.96,95.906,29.63816177]
[1645176812766,1.47615194,95.958,95.906,29.63816177]
[1645176812967,15.6448,95.95,95.904,24.4048]
[1645176813770,1.47615194,95.947,95.904,24.4048]
[1645176814169,15.6471,95.94,95.904,24.4048]
[1645176814770,50.80385704,95.939,95.904,24.4048]
[1645176816974,15.648,95.93,95.904,24.4048]
[1645176817375,15.648,95.93,95.9,3.0]
[1645176821977,50.80385704,95.939,95.9,3.0]
[1645176823386,1.47615194,95.948,95.901,5.212]
[1645176823582,17.12225194,95.95,95.901,5.212]
[1645176824082,1.47615194,95.95,95.901,5.212]
[1645176824280,1.47615194,95.954,95.902,54.19879916]
[1645176824480,43.08954844,95.953,95.903,5.211]
[1645176824680,43.08954844,95.953,95.903,34.84969916]
[1645176825084,43.08954844,95.953,95.903,5.211]
[1645176825281,43.08954844,95.953,95.902,24.5601]
[1645176826482,44.56570038,95.953,95.902,24.5601]
[1645176826981,43.08954844,95.953,95.902,24.5601]
[1645176827783,44.56570038,95.953,95.902,24.5601]
[1645176827982,43.08954844,95.953,95.902,24.5601]
[1645176829885,44.56570038,95.953,95.902,24.5601]
[1645176830886,43.08954844,95.953,95.902,24.5601]
[1645176833286,44.56570038,95.953,95.902,24.5601]
[1645176834087,1.47615194,95.952,95.902,24.5601]
[1645176834591,15.645,95.95,95.902,24.5601]
[1645176835188,44.56570038,95.953,95.902,24.5601]
[1645176835389,43.08954844,95.953,95.903,5.212]
[1645176835689,43.08954844,95.953,95.904,29.63734764]
[1645176836090,43.08954844,95.953,95.903,29.63734764]
[1645176840015,15.645,95.95,95.903,29.63734764]
[1645176840414,1.47615194,95.957,95.903,29.63734764]
[1645176840614,1.47615194,95.959,95.904,7.8413831]
[1645176840814,1.47615194,95.962,95.904,7.8413831]
[1645176841017,1.47615194,95.962,95.905,29.63734764]
[1645176841218,1.47615194,95.962,95.906,5.211]
[1645176841418,50.81394246,95.961,95.906,5.211]
[1645176841916,50.81394246,95.961,95.907,29.63734764]
[1645176842323,50.81394246,95.961,95.908,5.211]
[1645176842618,50.81394246,95.961,95.909,29.63734764]
[1645176843419,50.81394246,95.961,95.908,29.63734764]
[1645176844021,1.47615194,95.965,95.908,29.63734764]
[1645176844219,1.47615194,95.971,95.909,7.8403831]
[1645176844421,1.47615194,95.98,95.91,14.98]
[1645176844622,1.47615194,95.964,95.909,2.6293831]
[1645176844818,1.47615194,95.964,95.9,3.0]
[1645176845019,1.47615194,95.942,95.9,3.0]
[1645176845320,15.6474,95.94,95.9,3.0]
[1645176845518,46.51428085,95.951,95.901,39.48208418]
[1645176846118,1.47615194,95.947,95.901,39.48208418]
[1645176846320,1.47615194,95.945,95.902,23.0946]
[1645176846819,1.47615194,95.946,95.902,23.0946]
[1645176847019,1.47615194,95.948,95.902,23.0946]
[1645176847621,1.47615194,95.95,95.903,51.37013814]
[1645176848319,46.51428085,95.951,95.903,51.37013814]
[1645176848520,46.51428085,95.951,95.904,29.6385566]
[1645176849321,15.6448,95.95,95.904,29.6385566]
[1645176849621,1.47615194,95.947,95.902,23.0946]
[1645176849825,1.47615194,95.946,95.902,23.0946]
[1645176850020,1.47615194,95.945,95.902,23.0946]
[1645176850423,1.47615194,95.943,95.902,23.0946]
[1645176850622,1.47615194,95.94,95.902,23.0946]
[1645176850825,1.47615194,95.939,95.902,23.0946]
[1645176851225,1.47615194,95.937,95.9,3.0]
[1645176851922,1.47615194,95.938,95.9,3.0]
[1645176853524,17.12305194,95.94,95.9,3.0]
[1645176854426,15.6469,95.94,95.9,3.0]
[1645176855429,1.47615194,95.945,95.9,3.0]
[1645176856632,1.47615194,95.946,95.9,3.0]
[1645176857832,1.47615194,95.943,95.9,3.0]
[1645176858434,1.47615194,95.945,95.9,3.0]
[1645176858633,1.47615194,95.946,95.9,3.0]
[1645176860338,15.6448,95.95,95.9,3.0]
[1645176860339,1.47615194,95.944,95.9,3.0]
[1645176860540,1.47615194,95.943,95.9,3.0]
[1645176861641,1.47615194,95.945,95.9,3.0]
[1645176861843,1.47615194,95.943,95.9,3.0]
[1645176862043,15.6466,95.94,95.9,3.0]
[1645176864945,1.47615194,95.944,95.9,3.0]
[1645176865147,1.47615194,95.955,95.901,5.212]
[1645176865345,1.47615194,95.963,95.902,104.3]
[1645176865546,14.98,96.02,95.902,104.3]
[1645176865547,1.47615194,95.974,95.903,5.211]
[1645176865747,1.47615194,95.982,95.911,104.3]
[1645176865947,39.68611379,95.981,95.913,42.98762573]
[1645176866150,39.68611379,95.981,95.914,109.51]
[1645176866549,39.68611379,95.981,95.916,104.3]
[1645176866749,39.68611379,95.981,95.917,134.1221]
[1645176866950,39.68611379,95.981,95.917,161.17718334]
[1645176867149,39.68611379,95.981,95.918,5.211]
[1645176867349,39.68611379,95.981,95.918,37.47708334]
[1645176867851,39.68611379,95.981,95.919,32.26608334]
[1645176868050,39.68611379,95.981,95.92,29.63670024]
[1645176868252,1.47615194,95.978,95.92,29.63670024]
[1645176868455,1.47615194,95.979,95.921,5.211]
[1645176868652,1.47615194,95.98,95.921,5.211]
[1645176868851,41.16226573,95.981,95.921,5.211]
[1645176869051,41.16226573,95.981,95.922,29.63670024]
[1645176869252,39.68611379,95.981,95.922,29.63670024]
[1645176869761,39.68611379,95.981,95.921,29.63670024]
[1645176870559,15.6402,95.98,95.921,29.63670024]
[1645176870756,1.47615194,95.977,95.921,29.63670024]
[1645176870985,1.47615194,95.973,95.92,5.21]
[1645176871160,1.47615194,95.988,95.92,5.21]
[1645176871357,1.47615194,95.998,95.922,106.9293831]
[1645176871560,1.47615194,96.001,95.922,106.9293831]
[1645176871757,1.47615194,96.003,95.924,104.3]
[1645176871959,55.09278472,96.002,95.924,104.3]
[1645176872156,55.09278472,96.002,95.926,104.3]
[1645176872556,55.09278472,96.002,95.928,104.3]
[1645176872758,55.09278472,96.002,95.93,104.3]
[1645176873159,55.09278472,96.002,95.932,104.3]
[1645176873561,56.56893666,96.002,95.933,32.25598999]
[1645176873759,55.09278472,96.002,95.933,32.25598999]
[1645176873960,55.09278472,96.002,95.929,23.4666]
[1645176873961,55.09278472,96.002,95.934,29.62660689]
[1645176874162,1.47615194,96.001,95.934,29.62660689]
[1645176874362,1.47615194,95.999,95.93,29.62660689]
[1645176874563,1.47615194,95.998,95.93,29.62660689]
[1645176875566,55.09278472,96.002,95.93,29.62660689]
[1645176875567,1.47615194,95.999,95.93,29.62660689]
[1645176877767,1.47615194,96.0,95.93,29.62660689]
[1645176878892,1.47615194,96.0,95.929,23.4666]
[1645176879291,1.47615194,95.999,95.929,23.4666]
[1645176879491,15.637,96.0,95.929,23.4666]
[1645176879492,1.47615194,95.998,95.929,23.4666]
[1645176879692,1.47615194,95.995,95.929,23.4666]
[1645176880092,1.47615194,95.997,95.93,5.21]
[1645176880894,1.47615194,95.998,95.93,5.21]
[1645176882093,1.47615194,95.996,95.93,5.21]
[1645176882495,1.47615194,95.998,95.93,5.21]
[1645176882895,1.47615194,95.997,95.93,5.21]
[1645176883894,1.47615194,95.996,95.93,5.21]
[1645176885195,1.47615194,95.995,95.93,5.21]
[1645176885895,1.47615194,95.994,95.93,5.21]
[1645176886095,1.47615194,95.995,95.93,5.21]
[1645176886295,15.637,96.0,95.93,5.21]
[1645176886296,1.47615194,95.996,95.93,5.21]
[1645176886494,1.47615194,95.996,95.93,109.51]
[1645176886695,1.47615194,96.003,95.932,104.3]
[1645176886894,52.1094,96.05,95.932,104.3]
[1645176886895,1.47615194,96.009,95.932,104.3]
[1645176887094,1.47615194,96.014,95.934,104.3]
[1645176887494,1.47615194,96.014,95.936,104.3]
[1645176887697,5.92455128,96.049,95.941,104.3]
[1645176887698,55.16318352,96.013,95.941,104.3]
[1645176887898,55.16318352,96.013,95.945,104.3]
[1645176888505,55.16318352,96.013,95.946,2.6293831]
[1645176889401,56.63933546,96.013,95.946,2.6293831]
[1645176890002,1.47615194,96.011,95.946,2.6293831]
[1645176890402,1.47615194,96.01,95.946,2.6293831]
[1645176890804,1.47615194,96.009,95.946,2.6293831]
[1645176891004,55.16318352,96.013,95.946,2.6293831]
[1645176891005,1.47615194,96.01,95.946,2.6293831]
[1645176891207,1.47615194,96.008,95.946,2.6293831]
[1645176891408,1.47615194,96.008,95.946,106.9293831]
[1645176891705,1.47615194,96.007,95.946,106.9293831]
[1645176892104,1.47615194,96.008,95.946,106.9293831]
[1645176892710,1.47615194,96.006,95.947,2.6293831]